Cogmind - Beta 13 @@@ ROGUE MODE // 2024.04.21 @ 03:30:14 Player: Peregrine Result: Destroyed by Y-45 Defender with Beam Rifle Performance ------------- Evolutions (1) 500 Regions Visited (2) 400 Robots Destroyed (19) 95 Value Destroyed (495) 495 Prototype IDs (0) 0 Alien Tech Used (0) 0 Bonus (0) 0 TOTAL SCORE: 1490 Bonus ------- None Cogmind --------- Core Integrity 0/400 Matter 296/300 Energy 98/100 System Corruption 1% Temperature Cool (9) Movement Core (50) Location -9/Materials Parts ------- > --- POWER (1) -------- (None) > --- PROPULSION (2) --- (None) > --- UTILITY (4) ------ Targeting Computer > --- WEAPON (2) ------- (None) > --- INVENTORY (5) ---- Aluminum Leg Hacking Suite Peak State ------------ > --- POWER ------------ Light Ion Engine > --- PROPULSION ------- Light Treads Light Treads > --- UTILITY ---------- Heat Sink Large Storage Unit Terrain Scanner Targeting Computer > --- WEAPON ----------- Medium Laser Medium Laser > --- INVENTORY -------- Aluminum Leg Wheel Wheel Flight Unit Flight Unit Hacking Suite EM Pulse Gun Medium Laser [Rating: 10] Favorites ----------- Power Ion Engine Engine Ion Engine Propulsion Wheel Treads Light Treads Leg Aluminum Leg Wheel Wheel Flight Unit Flight Unit Utility Terrain Scanner Device Terrain Scanner Storage Medium Storage Unit Processor Targeting Computer Weapon Assault Rifle Energy Gun Medium Laser Ballistic Gun Assault Rifle Build | -11 -10 -9 ------- Run | Yrd Mat Mat Slots Evolved 2 | . . 2 Power . | . . . Propulsion . | . . . Utility 2 | . . 2 Weapon . | . . . Parts Attached 23 | . 14 9 Power 2 | . 2 . Engine 2 | . 2 . Core . | . . . Reactor . | . . . Propulsion 8 | . 4 4 Treads 2 | . 2 . Leg . | . . . Wheel 4 | . 2 2 Hover . | . . . Flight 2 | . . 2 Utility 6 | . 4 2 Device 3 | . 1 2 Storage 2 | . 2 . Processor 1 | . 1 . Hackware . | . . . Protection . | . . . Artifact . | . . . Weapon 7 | . 4 3 Energy Gun 6 | . 3 3 Energy Cannon . | . . . Ballistic Gun 1 | . 1 . Ballistic Cannon . | . . . Launcher . | . . . Special Weapon . | . . . Impact Weapon . | . . . Slashing Weapon . | . . . Piercing Weapon . | . . . Special Melee Weapon . | . . . Unidentified Prototypes . | . . . Parts Lost 14 | . 1 13 Power 2 | . 1 1 Propulsion 6 | . . 6 Utility 2 | . . 2 Weapon 4 | . . 4 Highest Loss Streak 13 | . 1 13 To Critical Strikes . | . . . Average Slot Usage (%) 97 | . 98 85 Engine 13 | . 13 9 Treads 10 | . 10 13 Wheel 15 | . 17 5 Device 8 | . 7 14 Storage 13 | . 14 10 Processor 6 | . 5 11 Energy Gun 12 | . 10 20 Ballistic Gun 14 | . 17 . Naked Turns . | . . . Heaviest Build 29 | 12 29 29 Greatest Support 40 | 20 40 40 Greatest Overweight (x) 2 | . . 2 Average Overweight (x) . | . . . Largest Inventory Capacity 15 | 8 15 15 Average Capacity 12 | 8 11 14 Most Carried 11 | 6 11 8 Average Carried 7 | 6 7 5 Final Capacity 15 | 8 15 5 Final Carried 9 | 6 9 2 Class Distribution -------------------- 100% | Mutant Dominant Class ---------------- Mutant | -10/Materials Mutant | -9/Materials Resources | -11 -10 -9 ----------- Run | Yrd Mat Mat Matter Collected 508 | 200 288 20 Remotely . | . . . Salvage Created 679 | . 564 115 Parts 34 | . 32 2 Haulers Intercepted 2 | . 2 . Recyclers Shooed 2 | . 2 . Parts Field Recycled . | . . . Retrieved Matter . | . . . Parts Self-Destructed . | . . . Prevented . | . . . Kills | -11 -10 -9 ------- Run | Yrd Mat Mat Combat Hostiles Destroyed 14 | . 12 2 Guns 13 | . 12 1 Classes Destroyed 8 | . 5 3 Builder 1 | . 1 . Hauler 2 | . 2 . Operator 1 | . . 1 Watcher 1 | . 1 . Swarmer 3 | . 3 . Grunt 9 | . 9 . Duelist 1 | . . 1 Sentry 1 | . . 1 Best Kill Streak 5 | . 5 2 Combat Bots Only 4 | . 4 2 Max Kills in Single Turn 1 | . 1 1 Gunslinging . | . . . Exploded . | . . . Melee . | . . . Uniques/NPCs Destroyed . | . . . Combat | -11 -10 -9 -------- Run | Yrd Mat Mat Hostile Shots Fired 148 | . 64 84 Missed 34 | . 15 19 Damage Taken 1585 | . 552 1033 Core 548 | . 136 412 Absorbed by Shields . | . . . Core Remaining (%) 72 | 100 45 . Volleys Fired 87 | . 62 25 Largest 2 | . 2 2 Hottest 100 | . 100 100 Shots Fired 162 | . 117 45 Gun 162 | . 117 45 Cannon . | . . . Launcher . | . . . Special . | . . . Kinetic 51 | . 51 . Thermal 103 | . 61 42 Explosive . | . . . Electromagnetic 8 | . 5 3 Robot Hit Streak 19 | . 14 19 Robot Miss Streak 4 | . 4 2 Penetration Max . | . . . Secondary Targets 2 | . 2 . Max Gunslinging Chain 1 | . 1 . Shots Hit Robots 114 | . 77 37 Core Hits 37 | . 30 7 Critical Kills . | . . . Critical Parts Destroyed . | . . . Critical Strikes 9 | . 6 3 Burn 9 | . 6 3 Melee Attacks . | . . . Impact . | . . . Slashing . | . . . Piercing . | . . . Sneak Attacks . | . . . Combat Hostiles . | . . . Follow-up Attacks . | . . . Damage Inflicted 1496 | . 1018 478 Guns 1437 | . 971 466 Cannons . | . . . Explosions 47 | . 47 . Melee . | . . . Ramming 12 | . . 12 Kinetic 361 | . 361 . Thermal 1027 | . 604 423 Explosive . | . . . Electromagnetic 96 | . 53 43 Impact . | . . . Slashing . | . . . Piercing . | . . . Highest Corruption 1 | . . 1 Average Corruption 1 | . . 1 Corruption Purged . | . . . Corruption Blocked . | . . . Overload Shots . | . . . Overflow Damage . | . . . Projectiles . | . . . Explosions . | . . . Melee . | . . . Knockbacks . | . . . Impact . | . . . Kinetic . | . . . Secondary . | . . . Self-Inflicted Damage 5 | . . 5 Shots . | . . . Rammed 3 | . . 3 Targets Rammed 3 | . . 3 Kicked . | . . . Crushed . | . . . Highest Temperature 298 | . 298 247 Average Temperature 96 | . 95 97 Received Heat Transfer 582 | . 303 279 Effects 1 | . 1 . Interference 1 | . 1 . Siege Activations . | . . . Robots Corrupted . | . . . Combat Hostiles . | . . . Parts Fried . | . . . Impact Corruptions . | . . . Robots Melted 1 | . . 1 Combat Hostiles 1 | . . 1 Parts Melted 12 | . 8 4 Heat Transferred 3602 | . 2122 1480 Parts Sabotaged . | . . . Parts Stolen . | . . . Parts Stripped . | . . . Power Chain Reactions 1 | . 1 . Alert | -11 -10 -9 ------- Run | Yrd Mat Mat Peak Influence 192 | . 192 95 Initial 75 | . . 75 Average 71 | . 73 67 Maximum Alert Level . | . . . Low Security (%) 100 | 100 100 100 Level 1 . | . . . Level 2 . | . . . Level 3 . | . . . Level 4 . | . . . Level 5 . | . . . High Security . | . . . Max Security . | . . . Squads Dispatched 4 | . 3 1 Investigation 2 | . 2 . Extermination . | . . . Reinforcement 2 | . 1 1 Assault . | . . . Garrison . | . . . Intercept . | . . . Searches Triggered . | . . . Construction Impeded . | . . . Haulers Reinforced . | . . . Active Scanning Responses . | . . . Cargo Convoy Interrupts . | . . . Stealth | -11 -10 -9 --------- Run | Yrd Mat Mat Distress Signals 1 | . 1 . Communications Jammed . | . . . Distress Signals . | . . . Times Spotted 27 | . 18 9 Peak Tracking Total 6 | . 4 6 Tactical Retreats 1 | . . 1 Traps | -11 -10 -9 ------- Run | Yrd Mat Mat Traps Triggered 1 | . 1 . Indirectly . | . . . Trap Hack Attempts . | . . . Triggered . | . . . Disarmed . | . . . Reprogrammed . | . . . Reused . | . . . Traps Extracted . | . . . Installed . | . . . Triggered . | . . . Machines | -11 -10 -9 ---------- Run | Yrd Mat Mat Machines Disabled . | . . . Max in Single Turn . | . . . Machines Repaired . | . . . Machines Dismantled . | . . . Machines Sabotaged . | . . . Overloaded Fab Kills . | . . . Hacking | -11 -10 -9 --------- Run | Yrd Mat Mat Machines Accessed 6 | . 6 . Terminals 5 | . 5 . Fabricators . | . . . Repair Stations . | . . . Recycling Units 1 | . 1 . Scanalyzers . | . . . Garrison Access . | . . . Total Hacks 13 | . 13 . Successful 7 | . 7 . Failed 6 | . 6 . Catastrophic 2 | . 2 . Database Lockouts . | . . . Manual 9 | . 9 . Terminals 11 | . 11 . Fabricators . | . . . Repair Stations . | . . . Recycling Units 2 | . 2 . Scanalyzers . | . . . Garrison Access . | . . . Terminal Hacks 3 | . 3 . Record 2 | . 2 . Recall Investigation 1 | . 1 . Fabricator Hacks . | . . . Repair Station Hacks . | . . . Recycling Unit Hacks . | . . . Scanalyzer . | . . . Garrison Access Hacks . | . . . Unauthorized Hacks 4 | . 4 . Terminals 4 | . 4 . Botnet 4 | . 4 . Fabricators . | . . . Repair Stations . | . . . Recycling Units . | . . . Scanalyzers . | . . . Garrison Access . | . . . Data Cores Recovered . | . . . Used . | . . . Hacking Detections 4 | . 4 . Full Trace Events 2 | . 2 . Feedback Events . | . . . Feedback Blocked . | . . . Robot Schematics Acquired . | . . . Robots Built . | . . . Authchips . | . . . Time . | . . . Total Robot Build Rating . | . . . Part Schematics Acquired . | . . . Parts Built . | . . . Authchips . | . . . Time . | . . . Total Part Build Rating . | . . . Parts Repaired . | . . . Time . | . . . Parts Recycled . | . . . Recycled Matter . | . . . Retrieved Matter . | . . . Retrieved Components . | . . . Parts Scanalyzed . | . . . Part Schematics Acquired . | . . . Parts Damaged . | . . . Bothacking | -11 -10 -9 ------------ Run | Yrd Mat Mat Used RIF Installer . | . . . Robots Hacked . | . . . Non-combat . | . . . Combat . | . . . Robot Hacks Applied . | . . . Relay Couplers Released . | . . . Fabnet Peak Effective % . | . . . Robots Rewired . | . . . Allies Hacked . | . . . Hacks Repelled . | . . . Allies | -11 -10 -9 -------- Run | Yrd Mat Mat Total Allies . | . . . Largest Group . | . . . Highest-Rated Group . | . . . Highest-Rated Ally . | . . . Total Orders . | . . . Ally Attacks . | . . . Total Damage . | . . . Kills . | . . . Allies Corrupted . | . . . Allies Melted . | . . . Intel | -11 -10 -9 ------- Run | Yrd Mat Mat Robot Analysis Total . | . . . Derelict Logs Recovered . | . . . Drone Launches . | . . . Drone Recoveries . | . . . Exploration | -11 -10 -9 ------------- Run | Yrd Mat Mat Turns Passed 1303 | 20 1113 170 Spaces Moved 499 | 17 421 61 Core 14 | . . 14 Treads 225 | . 180 45 Legs 17 | 17 . . Wheels 243 | . 241 2 Hover . | . . . Flight . | . . . Fastest Speed 50 | 120 80 50 Average Speed 116 | 120 114 132 Slowest Speed 160 | 120 160 160 Overloaded Moves . | . . . Propulsion Burnouts . | . . . Robots Hopped . | . . . Cave-ins Triggered . | . . . Exploration Rate (%) 27 | 2 70 9 Regions Visited 2 Branch Regions . Pre-discovered Areas . | . . . Known Exits Taken . | . . . Unknown Exits Taken 2 | 1 1 . Scrap Searched . | . . . Spaces Dug . | . . . Terrain Destroyed 1 | . 1 . Melee . | . . . Projectile . | . . . AOE 1 | . 1 . Terrain Rammed . | . . . Walls Destroyed . | . . . Machines Disabled . | . . . Actions | -11 -10 -9 --------- Run | Yrd Mat Mat Total 1053 | 16 935 102 Wait 420 | . 418 2 Move 497 | 16 420 61 Hop . | . . . Pick Up 14 | . 13 1 Fast Attach . | . . . Attach 12 | . 4 8 Detach . | . . . Swap 11 | . 10 1 Drop 9 | . 8 1 Fire 87 | . 62 25 Melee . | . . . Ram 3 | . . 3 Kick . | . . . Crush . | . . . Escape Stasis . | . . . Rewire . | . . . Trap . | . . . Miscellaneous . | . . . Route ------- -11/Scrapyard -10/Materials (discovered 2 exits: [*Mat x2]) -9/Materials History --------- Turn | Location | Event 1 | -11/Scrapyard | Discovered new exit (range 2) 21 | -11/Scrapyard | Entered Materials 309 | -10/Materials | Build established: Mutant 675 | -10/Materials | Discovered new exit (range 16) 999 | -10/Materials | Core integrity fell below 50% 1012 | -10/Materials | Discovered new exit (range 16) 1134 | -10/Materials | Entered another Materials area 1134 | -9/Materials | Evolved 2 slots: Utility x2 1277 | -9/Materials | Core integrity fell below 50% 1299 | -9/Materials | Core integrity fell below 20% 1304 | -9/Materials | Destroyed by Y-45 Defender with Beam Rifle Last Messages --------------- 01264_ L-31 Rogue heat damages Core Shielding. 01266_ L-31 Rogue heat spikes uncontrollably. 01268_ L-31 Rogue heat short circuits Melee Analysis Suite. 01269_ L-31 Rogue heat damages core (-9). 01269_ Katana melted. 01272_ Heat Sink melted. 01272_ Y-45 Defender destroyed. 01275_ G-34 Mercenary suffers critical hit (Burn). 01276_ Wheel destroyed. 01281_ Med. Laser destroyed. 01282_ Lgt. Ion Engine destroyed. 01283_ Med. Laser destroyed. 01288_ G-34 Mercenary heat short circuits Aluminum Leg. 01291_ Slammed into G-34 Mercenary. 01292_ Wheel destroyed. 01292_ System corrupted by crushing effect (+1). 01293_ EM Pulse Gun destroyed. 01296_ Dropped Lrg. Storage Unit. 01300_ Slammed into Y-45 Defender. 01300_ Destabilizing: Core damaged (-16). Map ----- +----------------------------------------------------+ | ?????????????????????????????????????????????????? | | ?????????????????????????????????????????????????? | | ??????????????????????????#??????????????????????? | | ???################??????????????????????????????? | | ???# #??????????????????????????????? | | ??## #??######??????????????????????? | | ???# #? ???????????????????????? | | ???############ #? ???????????????????????? | | ??????????????# # """ ""???????????????????????? | | ??????????????# # """ ""???????????????????????? | | ?????????#????# + """ ""???????????????????????? | | ???#??#?????#?# # #????????????????????? | | ??????????????# # #????????????????????? | | ????########### # #????????????????????? | | ????# # #?#########????????????????????? | | ????# T !!! # #??????????????????????????????? | | ????# !!! # #??????????????????????????????? | | ????# !! !/% ########???????????????????????? | | ????# # #???? ?? ???????????????? | | ???## # #???????????????????????? | | ????# # Y #???????????????????????? | | ????# *######## w #? ?????????????????????? | | ???##########%########g #???????????????????????? | | ????????????### # # ??????????????????????? | | ??????????????# + ###k#####???????????????? | | ??????#???????# """ # @ ????????? | | ??????????????# """ # ????????? | | ??????????????# """?# k % ????????? | | ??????????????# ?################ ?????????? | | ???????????#???####??????????????????????????????? | | ?????????#???????????????????????????????????????? | | ?????????????????????????????????????????????????? | | ?????????????????????????????????????????????????? | | ???????????????? ????????????????????????????????? | | ?????????????????????????????????????????????????? | | ?????????????????????????????????????????????????? | | ?????????????????????????????????????????????????? | | ?????????????????????????????????????????????????? | | ?????????????????????????????????????????????????? | | ?????????????????????????????????????????????????? | | ?????????????????????????????????????????????????? | | ?????????????????????????????????????????????????? | | ?????????????????????????????????????????????????? | | ?????????????????????????????????????????????????? | | ?????????????????????????????????????????????????? | | ?????????????????????????????????????????????????? | | ?????????????????????????????????????????????????? | | ?????????????????????????????????????????????????? | | ?????????????????????????????????????????????????? | | ?????????????????????????????????????????????????? | +----------------------------------------------------+ Best States ------------- Heat Dissipation 38 Energy Generation 10 Energy Capacity 250 Matter Stores 300 Matter Capacity 300 Sight Range 16 Terrain Scan Range 14 Terrain Scan Density 10 Evasion (%) 55 Targeting Accuracy 5 Recoil Reduction 2 Item Schematics ----------------- None Robot Schematics ------------------ None Fabricated ------------ Nothing Alien Tech Used ----------------- None Achievements -------------- None Challenges ------------ None Game ------ Seed AngularParticlePrototype Manual? 0 Play Time 00:10:22 Cumulative 80.3 hours Start 2024.04.21 @ 03:21:06 End 2024.04.21 @ 03:30:14 Sessions 1 Manual Loads 0 Difficulty Rogue Special Mode None Game No. 94 Rogue 79 Adventurer 15 Explorer 0 Win Type - Total 1 Types 0/0/1/0/0/0/0/0/0 Lore% 33 Gallery% 59 Achievement% 47 Wizard Run 0 Options --------- Layout 0 ASCII 0 Keyboard 0 Movement Mouse Keybinds 0 Fullscreen 2 Font 36/Smallcaps Map View 76x50 Zoom Use 0% Tactical HUD 1 Map Filters NONE Filters NONE Steam 1 RUN: 8ea5edd0-89d0-49af-9039-740141af3392